bitfinex-derivatives/quotes_SOLF0:USTF0_20251125
["timestamp","ask_amount","ask_price","bid_price","bid_amount"]
[1764076554406,26.09,136.49,136.47,6.5973]
[1764076554999,26.09,136.49,136.45,3.3632372]
[1764076555608,26.09,136.49,136.47,6.5974]
[1764076557210,3.09,136.52,136.49,6.5964]
[1764076557505,3.09,136.52,136.49,6.65130762]
[1764076558305,3.09,136.52,136.49,0.05490762]
[1764076559312,3.09,136.52,136.49,6.65140762]
[1764076560303,19.43,136.53,136.5,6.5959]
[1764076560511,19.43,136.53,136.49,0.05490762]
[1764076560704,19.43,136.53,136.49,3.36247477]
[1764076561313,22.6,136.53,136.49,0.05490762]
[1764076561614,3.17,136.52,136.49,0.05490762]
[1764076563510,3.17,136.52,136.5,62.0]
[1764076563907,19.43,136.53,136.5,62.0]
[1764076564311,1.8,136.54,136.5,65.30756715]
[1764076564715,1.8,136.54,136.52,6.595]
[1764076565314,4.97,136.54,136.49,0.05490762]
[1764076565511,3.17,136.53,136.49,0.05490762]
[1764076565814,3.17,136.53,136.49,25.19490762]
[1764076566208,3.17,136.53,136.49,31.79120762]
[1764076566409,3.17,136.53,136.49,25.19490762]
[1764076566809,3.17,136.53,136.5,6.5959]
[1764076567009,4.97,136.54,136.49,25.19490762]
[1764076567408,1.8,136.54,136.52,6.595]
[1764076567811,1.8,136.54,136.53,62.0]
[1764076568920,0.08,136.56,136.54,6.5941]
[1764076569316,3.17,136.59,136.54,6.5941]
[1764076569523,3.17,136.59,136.55,6.64582361]
[1764076569920,3.17,136.59,136.55,0.05252361]
[1764076570222,3.17,136.58,136.55,0.05252361]
[1764076570919,3.17,136.58,136.55,3.36009076]
[1764076571220,3.17,136.58,136.55,0.05252361]
[1764076572018,3.17,136.58,136.56,62.0]
[1764076572219,3.17,136.57,136.56,62.0]
[1764076572424,3.17,136.57,136.55,0.05252361]
[1764076573408,3.17,136.59,136.55,0.05252361]
[1764076576928,3.25,136.62,136.58,25.19178733]
[1764076577127,0.08,136.62,136.58,28.49935448]
[1764076577919,0.08,136.62,136.6,6.5911]
[1764076578219,2.93,136.68,136.6,3.30756715]
[1764076578424,2.93,136.68,136.63,0.0481552]
[1764076578821,2.93,136.68,136.64,62.0]
[1764076579123,127.5627,136.75,136.64,62.0]
[1764076579320,2.93,136.7,136.68,0.04832568]
[1764076579522,2.93,136.71,136.58,102.5413]
[1764076579723,2.93,136.71,136.6,9.89846715]
[1764076580320,9.5161,136.71,136.61,6.5904]
[1764076580523,2.93,136.71,136.65,0.04703541]
[1764076580728,2.97752931,136.67,136.65,0.04703541]
[1764076580920,2.9800403,136.67,136.65,0.04703541]
[1764076581724,2.9800403,136.67,136.6,6.591]
[1764076581725,2.93,136.66,136.6,25.12]
[1764076582121,2.93,136.65,136.6,25.12]
[1764076582624,0.0533426,136.64,136.61,62.04821857]
[1764076582827,2.9833426,136.64,136.61,62.04821857]
[1764076583029,0.0533426,136.64,136.61,62.04821857]
[1764076583420,0.0533426,136.64,136.61,68.63871857]
[1764076583624,2.93,136.7,136.63,3.30756715]
[1764076584624,2.93,136.7,136.65,0.05083727]
[1764076584826,2.93,136.67,136.59,25.12]
[1764076585823,2.98522989,136.64,136.62,0.05574574]
[1764076586022,2.98633577,136.64,136.62,0.05574574]
[1764076586629,0.05633577,136.64,136.62,0.05574574]
[1764076586818,0.05633577,136.64,136.63,62.0]
[1764076587930,2.93,136.67,136.63,62.0]
[1764076588818,2.93,136.65,136.63,62.0]
[1764076589023,2.93,136.65,136.63,62.05298656]
[1764076589223,2.93,136.65,136.58,107.56332911]
[1764076589224,2.93,136.65,136.46,307.8968]
[1764076589428,2.93,136.64,136.55,25.12]
[1764076590225,0.052314,136.61,136.58,0.05053099]
[1764076590830,2.93,136.67,136.58,0.05053099]
[1764076591138,2.93,136.67,136.58,102.5451]
[1764076591321,2.93,136.66,136.57,5.02112911]
[1764076591526,2.93,136.66,136.58,25.14]
[1764076591829,2.97555871,136.63,136.61,0.05636078]
[1764076592934,2.93,136.62,136.59,62.0]
[1764076593133,2.93,136.62,136.55,25.14]
[1764076593433,2.93,136.6,136.55,25.14]
[1764076593634,2.93,136.6,136.52,5.02112911]
[1764076593931,102.5109,136.63,136.55,0.05039321]
[1764076593932,2.93,136.56,136.55,0.05039321]
[1764076594529,2.93,136.56,136.51,46.8548663]
[1764076595036,2.93,136.55,136.49,25.14]
[1764076595231,2.93,136.55,136.48,6.5968]
[1764076595532,2.93,136.55,136.49,25.14]
[1764076595739,0.05141566,136.53,136.5,0.05321093]
[1764076595933,2.97760799,136.53,136.5,0.0548538]
[1764076596234,2.97760799,136.53,136.51,62.0]
[1764076596531,0.04760799,136.53,136.51,62.0]
[1764076597636,2.97760799,136.53,136.51,62.0]
[1764076598431,0.04760799,136.53,136.51,62.0]
[1764076598938,2.97760799,136.53,136.51,62.0]
[1764076600032,0.04760799,136.53,136.51,62.0]
[1764076601335,2.97760799,136.53,136.51,62.0]
[1764076603737,0.04760799,136.53,136.51,68.5954]
[1764076604141,0.04760799,136.53,136.51,62.0]
[1764076604338,2.97760799,136.53,136.51,62.0]
[1764076604836,0.04760799,136.53,136.51,62.0]
[1764076607841,3.02760799,136.53,136.51,62.0]
[1764076608236,0.04760799,136.53,136.51,68.5955]
[1764076608842,0.04760799,136.53,136.51,62.0]
[1764076611836,0.04760799,136.53,136.51,93.7351]
[1764076612043,0.04760799,136.53,136.51,62.0]
[1764076614238,0.04760799,136.53,136.51,68.5954]
[1764076617741,3.02760799,136.53,136.5,0.0548538]
[1764076620453,9.62220799,136.53,136.5,0.0548538]
[1764076620649,2.92,136.52,136.51,62.0]
[1764076620945,0.66,136.44,136.41,3.15]
[1764076621145,0.66,136.47,136.41,3.15]
[1764076621334,0.66,136.44,136.4,22.11350472]
[1764076621538,0.66,136.44,136.39,25.2]
[1764076621738,0.66,136.41,136.39,87.2]
[1764076621939,0.05154944,136.41,136.39,90.40099492]
[1764076622353,0.71154944,136.41,136.39,87.25099492]
[1764076622546,0.71154944,136.41,136.39,0.05099492]
[1764076622748,0.66,136.4,136.39,0.05099492]
[1764076622942,103.3436,136.4,136.33,3.15]
[1764076623142,0.66,136.39,136.33,3.15]
[1764076623343,0.66,136.39,136.31,25.2]
[1764076623644,0.66,136.39,136.32,3.15]
[1764076624148,0.707671,136.37,136.34,0.05035159]
[1764076624349,0.047671,136.37,136.34,3.20035159]
[1764076625255,0.047671,136.37,136.34,9.80395159]
[1764076625457,0.047671,136.37,136.35,3.15]
[1764076625653,0.047671,136.37,136.35,65.15]
[1764076625956,0.707671,136.37,136.35,62.0]
[1764076626450,0.047671,136.37,136.36,3.15]
[1764076626655,0.66,136.43,136.36,3.15]
[1764076627757,0.04811886,136.41,136.38,3.20276381]
[1764076627947,0.70811886,136.41,136.38,0.05276381]
[1764076629950,0.04811886,136.41,136.38,3.20276381]
[1764076631555,0.70811886,136.41,136.38,0.05276381]
[1764076631854,0.66,136.4,136.38,0.05276381]
[1764076633058,0.66,136.39,136.38,0.05276381]
[1764076633265,0.66,136.39,136.32,3.15]
[1764076633558,0.66,136.35,136.29,3.15]
[1764076633750,0.66,136.32,136.26,3.15]
[1764076634258,0.71432156,136.3,136.28,0.04797699]
[1764076634453,0.05432156,136.3,136.28,3.19797699]
[1764076634762,0.66,136.36,136.29,3.15]
[1764076635355,102.6841,136.4,136.3,3.15]
[1764076635551,0.66,136.39,136.3,3.15]
[1764076635857,0.0463579,136.36,136.33,0.04640659]
[1764076636065,0.0463579,136.36,136.33,3.19640659]
[1764076636358,0.0463579,136.36,136.34,65.15]
[1764076636560,6.601,136.4,136.35,3.15]
[1764076636752,0.66,136.42,136.35,3.15]
[1764076637262,0.66,136.42,136.36,9.6426]
[1764076637857,0.04934231,136.4,136.38,0.0540196]
[1764076638750,0.04934231,136.4,136.38,3.0940196]
[1764076639762,6.6026,136.37,136.29,3.04]
[1764076639955,102.711,136.36,136.25,3.04]
[1764076640164,102.711,136.36,136.26,3.04]
[1764076640363,6.6046,136.33,136.26,3.04]
[1764076640662,6.6046,136.33,136.27,62.0]
[1764076640963,102.7063,136.37,136.27,62.0]
[1764076640964,0.05026957,136.31,136.29,3.08917962]
[1764076641255,0.04797629,136.31,136.29,3.0878306]
[1764076641657,102.6999,136.38,136.29,3.0878306]
[1764076641962,102.6999,136.38,136.3,6.6056]
[1764076642160,102.6999,136.38,136.3,9.6456]
[1764076642456,6.6026,136.37,136.3,9.6456]
[1764076642663,0.05378923,136.35,136.32,3.09256953]
[1764076643059,6.65718923,136.35,136.32,3.09256953]
[1764076643361,6.65718923,136.35,136.32,0.05256953]
[1764076643860,6.604,136.34,136.32,0.05256953]
[1764076648357,0.05378923,136.35,136.32,0.05256953]
[1764076649762,6.6038,136.34,136.32,0.05256953]
[1764076651559,6.6057,136.3,136.29,62.0]
[1764076651768,6.6057,136.3,136.26,3.04]
[1764076651965,102.7374,136.33,136.26,3.04]
[1764076651966,102.7215,136.35,136.26,3.04]
[1764076652161,6.6048,136.32,136.26,3.04]
[1764076652566,0.05276046,136.3,136.28,0.04993487]
[1764076652766,0.0495854,136.3,136.28,0.04993487]
[1764076652970,0.0495854,136.3,136.28,3.08993487]
[1764076653978,0.0495854,136.3,136.29,3.04]
[1764076654162,6.6037,136.35,136.29,3.04]
[1764076654670,6.6037,136.35,136.31,3.04]
[1764076655071,0.05249942,136.34,136.32,0.04767911]
[1764076656062,0.05249942,136.34,136.32,3.08767911]
[1764076656861,0.05249942,136.34,136.32,9.69237911]
[1764076657068,0.05249942,136.34,136.32,3.08767911]
[1764076666078,0.05249942,136.34,136.32,24.96045067]
[1764076666278,0.05249942,136.34,136.32,3.08767911]
[1764076668980,0.05249942,136.34,136.33,9.7443]
[1764076669171,0.05249942,136.34,136.33,3.14]
[1764076672986,6.65629942,136.34,136.32,22.1345426]
[1764076673174,0.05249942,136.34,136.32,22.1345426]
[1764076673991,0.05249942,136.34,136.33,3.14]
[1764076676778,102.6615,136.43,136.33,3.14]
[1764076677380,102.6516,136.44,136.37,3.14]
[1764076677783,0.05333544,136.42,136.39,0.05157542]
[1764076678378,6.6009,136.4,136.39,0.05157542]
[1764076678685,102.6808,136.4,136.34,3.16]
[1764076679079,6.6025,136.37,136.34,3.16]
[1764076679490,0.04655687,136.37,136.34,3.2109336]
[1764076679686,6.6028,136.36,136.34,3.2109336]
[1764076681494,0.04655687,136.37,136.34,3.2109336]
[1764076682783,0.04655687,136.37,136.36,3.16]
[1764076682986,0.04655687,136.37,136.34,3.2109336]
[1764076683189,6.64895687,136.37,136.34,3.2109336]
[1764076683388,0.04655687,136.37,136.34,0.0509336]
[1764076683585,0.04655687,136.37,136.34,3.2109336]
[1764076684394,6.6028,136.36,136.34,3.2109336]
[1764076684593,0.04655687,136.37,136.34,3.2109336]
[1764076684998,6.64885687,136.37,136.34,3.2109336]
[1764076685895,6.6028,136.36,136.34,3.2109336]
[1764076686485,6.6028,136.36,136.34,0.0509336]
[1764076686689,6.6028,136.36,136.34,3.2109336]
[1764076687101,0.04655687,136.37,136.34,3.2109336]
[1764076687891,102.6241,136.48,136.36,3.16]
[1764076688088,102.6357,136.46,136.37,3.16]
[1764076688285,102.6435,136.45,136.37,3.16]
[1764076688489,6.5996,136.43,136.37,3.16]
[1764076688689,102.6357,136.46,136.37,3.16]
[1764076689000,0.04884303,136.43,136.41,3.16]
[1764076689199,0.05095134,136.43,136.41,3.20643064]
[1764076689790,0.05095134,136.43,136.41,0.04643064]
[1764076690196,6.65055134,136.43,136.41,0.04643064]
[1764076691094,6.6016,136.39,136.36,3.16]
[1764076692093,6.65204181,136.39,136.36,3.21451233]
[1764076694002,6.65204181,136.39,136.37,62.0]
[1764076694704,6.65204181,136.39,136.36,3.21451233]
[1764076695202,0.05044181,136.39,136.36,3.21451233]
[1764076695605,0.05044181,136.39,136.36,9.81711233]
[1764076695800,0.05044181,136.39,136.37,3.16]
[1764076696105,0.05044181,136.39,136.38,3.16]
[1764076697702,0.05044181,136.39,136.38,65.16]
[1764076700399,0.05044181,136.39,136.38,3.16]
[1764076700602,0.05044181,136.39,136.38,9.7618]
[1764076700800,102.6388,136.46,136.38,9.7618]
[1764076701714,122.54574505,136.5,136.4,2.99]
[1764076701898,0.05537141,136.46,136.44,3.04645323]
[1764076702092,0.05537141,136.46,136.44,9.64535323]
[1764076702093,0.0466792,136.46,136.44,9.64535323]
[1764076702306,0.0466792,136.46,136.44,3.04645323]
[1764076702506,102.563,136.56,136.45,2.99]
[1764076702704,6.5949,136.53,136.47,2.99]
[1764076703003,102.563,136.56,136.47,2.99]
[1764076703202,102.5682,136.55,136.47,2.99]
[1764076703409,0.05083121,136.52,136.5,0.05649743]
[1764076703909,0.05083121,136.52,136.5,3.04649743]
[1764076705211,0.05083121,136.52,136.5,0.05649743]
[1764076706712,6.74534505,136.63,136.53,2.99]
[1764076706897,5.53161034,136.62,136.53,2.99]
[1764076707106,6.5915,136.6,136.53,2.99]
[1764076707403,107.55806959,136.61,136.53,2.99]
[1764076707612,6.5928,136.57,136.53,2.99]
[1764076707806,6.5928,136.57,136.56,0.05119626]
[1764076708111,6.5928,136.57,136.55,0.05378511]
[1764076708407,6.61539976,136.57,136.55,0.04797839]
[1764076708998,102.57889976,136.57,136.5,2.99]
[1764076709199,102.5622,136.56,136.5,2.99]
[1764076709814,6.5943,136.54,136.5,2.99]
[1764076710008,0.05459725,136.53,136.51,0.05280199]
[1764076712016,6.64929725,136.53,136.51,0.05280199]
[1764076715808,6.5966,136.49,136.45,25.14098731]
[1764076716008,132.81376959,136.54,136.46,2.99]
[1764076716209,102.5836,136.53,136.46,2.99]
[1764076716413,6.5961,136.5,136.46,64.99]
[1764076716809,0.05035066,136.49,136.47,0.05342538]
[1764076717205,0.05035066,136.49,136.47,3.04342538]
[1764076724328,6.64695066,136.49,136.47,3.04342538]
[1764076727629,6.64695066,136.49,136.47,0.05342538]
[1764076728425,6.64695066,136.49,136.47,3.00342538]
[1764076728815,6.64695066,136.49,136.47,0.05342538]
[1764076729227,6.64695066,136.49,136.47,3.00342538]
[1764076732232,0.05035066,136.49,136.47,3.00342538]
[1764076739425,6.64695066,136.49,136.47,3.00342538]
[1764076740929,0.05035066,136.49,136.47,3.00342538]
[1764076745137,0.05035066,136.49,136.48,3.02]
[1764076745335,2.11537144,136.55,136.48,3.02]
[1764076745641,2.11537144,136.57,136.52,3.02]
[1764076746538,0.053353,136.56,136.53,3.06934664]
[1764076747326,6.5937,136.55,136.53,0.04934664]
[1764076747527,0.053353,136.56,136.53,3.06934664]
[1764076750142,6.5936,136.55,136.53,0.04934664]
[1764076750739,6.5952,136.52,136.47,3.02]
[1764076751137,2.11537144,136.53,136.48,3.02]
[1764076751343,8.71017144,136.53,136.48,3.02]
[1764076751740,0.05408802,136.52,136.5,3.02]
[1764076753441,6.64918802,136.52,136.49,3.07528662]
[1764076758247,0.05408802,136.52,136.49,3.07528662]
[1764076758848,6.64918802,136.52,136.49,3.07528662]
[1764076759448,6.5957,136.51,136.49,0.05528662]
[1764076760038,0.05408802,136.52,136.49,3.05528662]
[1764076761747,6.64918802,136.52,136.49,3.05528662]
[1764076761945,0.05408802,136.52,136.49,3.05528662]
[1764076763547,0.05408802,136.52,136.49,9.65168662]
[1764076763752,0.05408802,136.52,136.5,3.0]
[1764076766054,0.05408802,136.52,136.49,3.05528662]
[1764076767344,0.05408802,136.52,136.5,3.0]
[1764076768154,0.05408802,136.52,136.49,3.05528662]
[1764076769854,0.05408802,136.52,136.49,0.05528662]
[1764076770260,0.05408802,136.52,136.49,3.05528662]
[1764076771270,6.5956,136.51,136.49,0.05528662]
[1764076773162,6.596,136.5,136.49,0.05528662]
[1764076773662,0.05408802,136.52,136.49,0.05528662]
[1764076773874,0.05408802,136.52,136.49,3.05528662]
[1764076774576,0.05408802,136.52,136.49,0.05528662]
[1764076775377,6.596,136.51,136.49,0.05528662]
[1764076776178,6.596,136.5,136.49,0.05528662]
[1764076790892,0.05408802,136.52,136.49,3.11528662]
[1764076792190,6.5957,136.51,136.49,3.11528662]
[1764076800996,6.64918802,136.52,136.49,3.11528662]
[1764076801184,0.05408802,136.52,136.49,3.11528662]
[1764076801596,0.05408802,136.52,136.51,3.15]
[1764076803888,0.05408802,136.52,136.49,0.05528662]
[1764076804197,0.05408802,136.52,136.49,3.20528662]
[1764076806287,112.66952004,136.61,136.49,109.11890397]
[1764076806496,11.05057591,136.6,136.52,3.15]
[1764076806699,102.5344,136.6,136.52,3.15]
[1764076806901,5.56714304,136.59,136.52,3.15]
[1764076807098,102.5344,136.6,136.52,3.15]
[1764076807292,0.04843018,136.57,136.55,0.05457593]
[1764076808399,6.64113018,136.57,136.55,0.05457593]
[1764076809697,102.5095,136.63,136.55,3.20457593]
[1764076810000,102.5027,136.64,136.55,3.20457593]
[1764076810198,5.5604283,136.63,136.57,3.15]
[1764076810400,102.5027,136.64,136.57,3.15]
[1764076810705,5.55653224,136.63,136.59,0.05514477]
[1764076811001,102.5027,136.64,136.59,0.05514477]
[1764076811200,5.55666213,136.63,136.59,0.05514477]
[1764076811400,6.5908,136.61,136.59,0.05514477]
[1764076812599,6.5908,136.61,136.59,3.20514477]
[1764076813905,130.96171735,136.65,136.59,3.20514477]
[1764076814103,5.54797977,136.64,136.59,3.20514477]
[1764076814303,130.96171735,136.65,136.59,3.20514477]
[1764076814498,5.54564823,136.64,136.59,3.20514477]
[1764076814700,130.96171735,136.65,136.59,3.20514477]
[1764076814898,5.54564823,136.64,136.59,3.20514477]
[1764076815105,130.94171735,136.65,136.59,3.20514477]
[1764076815306,6.5908,136.61,136.59,0.05514477]
[1764076816006,6.5908,136.61,136.59,22.40751683]
[1764076816210,6.5908,136.61,136.59,0.05514477]
[1764076816710,6.5932,136.56,136.53,3.15]
[1764076817697,6.64793956,136.56,136.53,3.20363042]
[1764076818304,6.64793956,136.56,136.54,62.0]
[1764076818505,6.64793956,136.56,136.54,64.93]
[1764076818809,6.64793956,136.56,136.54,2.93]
[1764076819303,6.64793956,136.56,136.53,21.80108105]
[1764076819304,6.5941,136.54,136.53,21.80108105]
[1764076819612,0.05473956,136.56,136.54,2.93]
[1764076821103,6.5917,136.6,136.56,2.93]
[1764076821305,102.5041,136.64,136.56,2.93]
[1764076821716,102.5041,136.64,136.58,2.93]
[1764076822104,0.02026313,136.62,136.6,0.04788208]
[1764076822305,0.02026313,136.62,136.6,2.97788208]
[1764076823304,6.61066313,136.62,136.6,2.97788208]
[1764076824317,416.66920269,136.7,136.6,2.97788208]
[1764076824318,6.83850269,136.71,136.62,2.93]
[1764076824508,102.4516,136.71,136.62,2.93]
[1764076824708,102.4631,136.69,136.62,2.93]
[1764076825011,3.30431735,136.69,136.62,2.93]
[1764076825515,6.5884,136.66,136.64,0.05451695]
[1764076829015,6.5897,136.64,136.6,22.37872889]
[1764076829210,102.4887,136.66,136.58,2.93]
[1764076829427,105.79791735,136.65,136.58,2.93]
[1764076829610,6.5904,136.62,136.58,2.93]
[1764076829814,127.6609,136.64,136.58,2.93]
[1764076830318,0.05141253,136.62,136.6,0.05200355]
[1764076831414,6.591,136.61,136.6,0.05200355]
[1764076831918,102.5307,136.6,136.55,2.93]
[1764076832314,129.80276764,136.6,136.53,26.78951827]
[1764076832617,25.16,136.61,136.57,2.93]
[1764076832804,25.16,136.61,136.58,0.05152324]
[1764076833007,0.05372896,136.6,136.58,0.05152324]
[1764076833407,0.05372896,136.6,136.59,2.93]
[1764076833610,102.4881,136.66,136.59,5.04206764]
[1764076834117,6.5899,136.63,136.59,5.04206764]
[1764076834418,6.5899,136.63,136.6,2.93]
[1764076834620,0.04761632,136.62,136.6,2.97808767]
[1764076834819,0.04761632,136.62,136.61,5.04206764]
[1764076835213,102.4707,136.68,136.62,2.93]
[1764076835410,104.55316764,136.72,136.65,5.04206764]
[1764076835723,102.4411,136.72,136.66,2.93]
[1764076835920,6.5869,136.7,136.66,2.93]
[1764076836217,2.11206764,136.7,136.67,0.05205262]
[1764076836410,2.11206764,136.7,136.67,0.0541368]
[1764076836615,6.5873,136.68,136.67,2.9841368]
[1764076837720,6.5873,136.68,136.67,0.0541368]
[1764076840122,6.5888,136.65,136.63,24.77571479]
[1764076841118,6.5888,136.65,136.63,21.90200154]
[1764076841119,6.63825352,136.65,136.63,21.90200154]
[1764076841323,6.63825352,136.65,136.63,0.05628675]
[1764076842118,8.75032116,136.65,136.63,0.05628675]
[1764076842320,6.5907,136.62,136.58,64.93]
[1764076842522,104.62006764,136.63,136.55,5.04206764]
[1764076843028,6.5918,136.59,136.56,2.93]
[1764076843414,6.6451772,136.59,136.56,2.98427108]
[1764076846921,6.6451772,136.59,136.56,0.05427108]
[1764076847123,6.6451772,136.59,136.56,3.05427108]
[1764076849130,6.6451772,136.59,136.56,0.05427108]
[1764076849724,6.5923,136.58,136.56,0.05427108]
[1764076850030,2.16544484,136.59,136.56,3.05427108]
[1764076850031,0.0533772,136.59,136.56,3.05427108]
[1764076851716,0.0533772,136.59,136.56,0.05427108]
[1764076851918,2.11206764,136.57,136.56,0.05427108]
[1764076852323,2.11206764,136.57,136.52,3.0]
[1764076852526,2.11206764,136.57,136.49,3.0]
[1764076852935,6.5939,136.55,136.5,3.0]
[1764076853333,0.05327531,136.54,136.51,3.05506871]
[1764076855626,0.05327531,136.54,136.52,65.0]
[1764076855832,0.05327531,136.54,136.53,3.0]
[1764076859243,0.05327531,136.54,136.52,65.14]
[1764076859440,0.05327531,136.54,136.53,3.14]
[1764076862251,207.32304295,136.54,136.51,0.05506871]
[1764076862548,2.11206764,136.52,136.45,3.14]
[1764076862747,6.5948,136.53,136.45,5.25206764]
[1764076862950,2.11206764,136.53,136.46,3.14]
[1764076863162,6.5957,136.51,136.48,3.14]
[1764076863455,6.65106513,136.51,136.48,3.19173429]
[1764076863642,8.76313277,136.51,136.48,3.19173429]
[1764076864251,0.05536513,136.51,136.48,3.19173429]
[1764076864469,2.11206764,136.56,136.49,2.11206764]
[1764076864665,8.70536764,136.56,136.5,3.14]
[1764076865363,0.04841914,136.54,136.5,3.14]
[1764076865569,0.04841914,136.54,136.52,0.04883836]
[1764076865970,0.04841914,136.54,136.52,3.18883836]
[1764076868775,2.11206764,136.62,136.54,3.14]
[1764076868968,104.62486764,136.63,136.56,3.14]
[1764076869282,6.5909,136.61,136.56,3.14]
[1764076869568,2.11206764,136.63,136.56,3.14]
[1764076869774,6.64578425,136.61,136.58,3.19638664]
[1764076871776,6.5913,136.6,136.58,0.05638664]
[1764076873476,31.8113,136.6,136.58,0.05638664]
[1764076873772,102.5538,136.57,136.49,3.14]
[1764076874478,6.5938,136.55,136.5,3.14]
[1764076874677,0.0524014,136.54,136.51,3.18699025]
[1764076875279,6.6467014,136.54,136.51,3.18699025]
[1764076875605,0.0524014,136.54,136.51,0.04699025]
[1764076875774,102.5982,136.51,136.44,3.14]
[1764076876079,102.614,136.49,136.41,3.14]
[1764076876271,6.5981,136.46,136.41,3.14]
[1764076876878,6.5981,136.46,136.42,0.04832878]
[1764076876879,6.5991,136.44,136.42,0.04832878]
[1764076877278,0.05633983,136.45,136.42,0.04832878]
[1764076877984,102.6912,136.39,136.31,3.1]
[1764076878279,102.6856,136.4,136.31,3.1]
[1764076878470,6.6022,136.38,136.31,3.1]
[1764076878869,102.75976105,136.36,136.33,0.05035016]
[1764076879076,0.04866105,136.36,136.33,0.05035016]
[1764076879880,0.04866105,136.36,136.33,3.15035016]
[1764076880282,6.65176105,136.36,136.33,0.05035016]
[1764076881680,0.04866105,136.36,136.33,3.15035016]
[1764076883477,107.67518676,136.45,136.33,105.88345016]
[1764076883679,102.6518,136.44,136.34,3.1]
[1764076884075,6.5997,136.43,136.35,3.1]
[1764076884679,0.04803391,136.4,136.38,0.05052445]
[1764076884877,0.04803391,136.4,136.38,3.15052445]
[1764076886381,0.04803391,136.4,136.38,0.05052445]
[1764076886584,0.04803391,136.4,136.38,3.15052445]
[1764076886783,0.04803391,136.4,136.39,65.1]
[1764076890680,6.5981,136.46,136.4,3.1]
[1764076891577,6.597,136.48,136.4,3.1]
[1764076891782,213.95407681,136.53,136.43,3.1]
[1764076891783,102.5909,136.52,136.43,3.1]
[1764076891983,102.5909,136.52,136.46,0.04925197]
[1764076892175,0.05154256,136.49,136.46,3.14925197]
[1764076893786,0.05154256,136.49,136.47,65.1]
[1764076894375,0.05154256,136.49,136.46,0.04925197]
[1764076895788,6.5973,136.48,136.46,0.04925197]
[1764076900678,0.05154256,136.49,136.46,3.14925197]
[1764076900884,102.5645,136.56,136.46,3.14925197]
[1764076901181,127.8445,136.56,136.46,3.1]
[1764076901787,6.5942,136.54,136.48,3.1]
[1764076901978,0.05234001,136.52,136.5,0.04743188]
[1764076902183,0.05234001,136.52,136.5,3.14743188]
[1764076902184,0.05095637,136.52,136.5,3.14743188]
[1764076904594,58.69681428,136.55,136.5,3.14743188]
[1764076904981,6.5951,136.52,136.5,3.14743188]
[1764076905598,6.64793442,136.52,136.5,3.14743188]
[1764076905895,6.5966,136.49,136.46,3.1]
[1764076906889,6.64933642,136.49,136.46,65.15580434]
[1764076907583,58.69681428,136.55,136.47,3.01]
[1764076908696,0.05444058,136.52,136.5,0.05521477]
[1764076910291,6.64964058,136.52,136.5,0.05521477]
[1764076910895,0.05444058,136.52,136.5,3.06521477]
[1764076911897,0.05444058,136.52,136.5,0.05521477]
[1764076912693,0.05444058,136.52,136.5,3.06521477]
[1764076913495,6.64974058,136.52,136.5,0.05521477]
[1764076915390,102.6034,136.51,136.42,3.01]
[1764076915993,102.6034,136.51,136.43,9.6097]
[1764076916199,102.6034,136.51,136.43,3.01]
[1764076916200,6.5974,136.48,136.43,3.01]
[1764076916498,0.05087184,136.47,136.45,3.01]
[1764076918500,0.05087184,136.47,136.45,65.01]
[1764076919197,0.05087184,136.47,136.45,3.01]
[1764076919993,6.64867184,136.47,136.45,3.01]
[1764076921192,0.05087184,136.47,136.45,3.01]
[1764076921800,6.64877184,136.47,136.45,3.01]
[1764076922703,0.05087184,136.47,136.45,3.01]
[1764076923403,0.05087184,136.47,136.46,9.5983]
[1764076923897,0.05087184,136.47,136.46,3.0]
[1764076924801,25.26,136.55,136.46,3.0]
[1764076924997,25.26,136.56,136.46,3.0]
[1764076925700,0.04665115,136.52,136.5,0.04933036]
[1764076925899,0.04665115,136.52,136.5,3.04933036]